[Event "Italian-ch Semifinal 2022"]
[Site "Acqui Terme"]
[Date "2022.06.16"]
[Round "6.7"]
[White "Misiano, Franco"]
[Black "Tripodi, Enzo"]
[Result "1/2-1/2"]
[ECO "B99"]
[WhiteElo "2195"]
[BlackElo "2170"]
[Annotator "NA RC"]
[PlyCount "143"]
[EventDate "2022.06.15"]
[EventType "swiss"]
[EventCountry "ITA"]
[SourceTitle "playchess.com"]
[Source "ChessBase"]
[SourceQuality "1"]
[TimeControl "40/5400+30:1800+30"]

1. e4 {[%emt 0:00:03]} c5 {[%emt 0:00:05]} 2. Nf3 {[%emt 0:00:10]} d6 {[%emt 0:00:05]} 3. d4 {[%emt 0:00:05]} cxd4 {[%emt 0:00:04]} 4. Nxd4 {[%emt 0:00:06]} Nf6 {[%emt 0:00:05]} 5. Nc3 {[%emt 0:00:08]} a6 {[%emt 0:00:05]} 6. Bg5 {[%emt 0:00:07]} e6 {[%emt 0:00:05]} 7. f4 {[%emt 0:00:08]} Be7 {[%emt 0:00:13]} 8. Qf3 {[%emt 0:00:10]} Qc7 {[%emt 0:00:05]} 9. O-O-O {[%emt 0:00:12]} Nbd7 {[%emt 0:00:06]} 10. g4 {[%emt 0:00:08]} h6 {[%emt 0:00:05]} 11. Bh4 {[%emt 0:00:43]} g5 {[%emt 0:00:07]} 12. e5 {[%emt 0:00:13]} dxe5 {[%emt 0:00:06]} 13. fxg5 {[%emt 0:00:18]} hxg5 {[%emt 0:00:12]} 14. Bg3 {[%emt 0:00:10]} Bb4 {[%emt 0:00:19]} 15. Ne4 {[%emt 0:07:45]} Nxe4 {[%emt 0:01:16]} 16. Qxe4 {[%emt 0:00:15]} Nf6 {[%emt 0:00:27]} 17. Qxe5 {[%emt 0:01:48]} Qxe5 {[%emt 0:00:17]} 18. Bxe5 {[%emt 0:00:06]} Rh6 {[%emt 0:00:25]} 19. Be2 {[%emt 0:07:38]} Ne4 {[%emt 0:10:22]} 20. Rhf1 {[%emt 0:06:11]} f6 {[%emt 0:06:04]} 21. Bc7 {[%emt 0:01:57]} e5 {[%emt 0:25:09]} 22. Nc6 {[%emt 0:05:17]} bxc6 {[%emt 0:06:23]} 23. Bf3 {[%emt 0:00:39]} Bd7 {[%emt 0:04:45]} 24. Bxe4 {[%emt 0:00:32]} Rc8 {[%emt 0:00:52]} 25. Bd6 {[%emt 0:02:19]} Bxd6 {[%emt 0:01:27]} 26. Rxd6 {[%emt 0:00:08]} Ke7 {[%emt 0:00:16]} 27. Rxd7+ {[%emt 0:00:22]} Kxd7 {[%emt 0:00:02]} 28. Bf5+ {[%emt 0:00:08]} Kc7 {[%emt 0:00:03]} 29. Bxc8 {[%emt 0:00:07]} Kxc8 {[%emt 0:00:30]} 30. Rf2 {[%emt 0:00:39]} Kd7 {[%emt 0:00:04]} 31. Kd2 {[%emt 0:00:28]} Ke6 {[%emt 0:00:32]} 32. Ke3 {[%emt 0:01:06]} Rh3+ {[%emt 0:00:06]} 33. Ke4 {[%emt 0:00:51]} Rh4 {[%emt 0:00:04]} 34. Kf3 {[%emt 0:00:20]} Rh7 {[%emt 0:05:15]} 35. Rd2 {[%emt 0:03:23]} Rb7 {[%emt 0:02:55]} 36. b3 {[%emt 0:03:07]} Rb4 {[%emt 0:00:46]} 37. c4 {[%emt 0:00:20]} a5 {[%emt 0:00:53]} 38. Ke4 {[%emt 0:01:10]} a4 {[%emt 0:00:23]} 39. Rd3 {[%emt 0:00:16]} axb3 {[%emt 0:00:17]} 40. axb3 {[%emt 0:00:00]} Rb7 {[%emt 0:00:00]} 41. h3 {[%emt 0:01:54]} c5 {[%emt 0:08:29]} 42. Kf3 {[%emt 0:03:16]} f5 {[%emt 0:01:51]} 43. gxf5+ {[%emt 0:00:46]} Kxf5 {[%emt 0:00:01]} 44. Kg3 {[%emt 0:00:58]} Ke4 {[%emt 0:00:39]} 45. Rd5 {[%emt 0:00:19]} Kf5 {[%emt 0:01:09]} 46. Rd3 {[%emt 0:00:37]} Rb8 {[%emt 0:04:44]} 47. Rf3+ {[%emt 0:02:52]} Ke4 {[%emt 0:01:01]} 48. Kg4 {[%emt 0:00:08]} Rh8 {[%emt 0:02:29]} 49. Rf1 {[%emt 0:04:31]} Rh4+ {[%emt 0:04:01]} 50. Kxg5 {[%emt 0:02:46]} Rxh3 {[%emt 0:00:07]} 51. Rd1 {[%emt 0:02:48]} Rd3 {[%emt 0:03:43]} 52. Rb1 {[%emt 0:00:25]} Kd4 {[%emt 0:02:52]} 53. b4 {[%emt 0:00:17]} cxb4 {[%emt 0:00:09]} 54. Rxb4 {[%emt 0:00:07]} Rf3 {[%emt 0:01:21]} 55. Kg4 {[%emt 0:01:53]} Rf4+ {[%emt 0:00:22]} 56. Kg3 {[%emt 0:00:08]} Ke3 {[%emt 0:02:51]} 57. Rb5 {[%emt 0:00:40]} Rf3+ {[%emt 0:00:42]} 58. Kg2 {[%emt 0:01:04]} Rf5 {[%emt 0:00:38]} 59. Rd5 {[%emt 0:01:19]} Rf2+ {[%emt 0:01:11]} 60. Kg3 {[%emt 0:00:27]} e4 {[%emt 0:00:09]} 61. Rd1 {[%emt 0:03:13]} Rc2 {[%emt 0:02:21]} 62. Re1+ {[%emt 0:00:21]} Kd3 {[%emt 0:00:12]} 63. Kf4 {[%emt 0:01:25]} Rf2+ {[%emt 0:01:23]} 64. Ke5 {[%emt 0:00:26]} e3 {[%emt 0:00:08]} 65. c5 {[%emt 0:00:19]} Kd2 {[%emt 0:01:21]} 66. Rxe3 {[%emt 0:04:07]} Kxe3 {[%emt 0:00:04]} 67. c6 {[%emt 0:00:07]} Rf7 {[%emt 0:08:44]} 68. Kd6 {[%emt 0:00:15]} Kd4 {[%emt 0:00:38]} 69. c7 {[%emt 0:00:06]} Rf8 {[%emt 0:00:41]} 70. Kd7 {[%emt 0:00:12]} Rf7+ {[%emt 0:00:04]} 71. Kd6 {[%emt 0:00:07]} Rxc7 {[%emt 0:00:03]} 72. Kxc7 {[%emt 0:00:07]} 1/2-1/2

[Event "Italian-ch Semifinal 2022"]
[Site "Acqui Terme"]
[Date "2022.06.16"]
[Round "6.8"]
[White "Floris, Federico"]
[Black "Hercegovac, Neven"]
[Result "0-1"]
[ECO "B77"]
[WhiteElo "1950"]
[BlackElo "2155"]
[Annotator "NA RC"]
[PlyCount "54"]
[EventDate "2022.06.15"]
[EventType "swiss"]
[EventCountry "ITA"]
[SourceTitle "playchess.com"]
[Source "ChessBase"]
[SourceQuality "1"]
[TimeControl "40/5400+30:1800+30"]

1. e4 {[%emt 0:00:04]} c5 {[%emt 0:00:03]} 2. Nf3 {[%emt 0:00:13]} d6 {[%emt 0:00:05]} 3. d4 {[%emt 0:00:06]} cxd4 {[%emt 0:00:03]} 4. Nxd4 {[%emt 0:00:07]} Nf6 {[%emt 0:00:04]} 5. Nc3 {[%emt 0:00:08]} g6 {[%emt 0:00:03]} 6. Be3 {[%emt 0:00:07]} Bg7 {[%emt 0:00:04]} 7. f3 {[%emt 0:00:06]} O-O {[%emt 0:00:05]} 8. Qd2 {[%emt 0:00:04]} Nc6 {[%emt 0:00:04]} 9. Bc4 {[%emt 0:00:18]} Nd7 {[%emt 0:00:13]} 10. O-O-O {[%emt 0:01:14]} Nb6 {[%emt 0:00:04]} 11. Be2 {[%emt 0:00:07]} Na5 {[%emt 0:05:52]} 12. b3 {[%emt 0:01:23]} Bd7 {[%emt 0:26:55]} 13. h4 {[%emt 0:09:46]} a6 {[%emt 0:04:58]} 14. g4 {[%emt 0:07:37]} e5 {[%emt 0:21:34]} 15. Nf5 {[%emt 0:00:26]} gxf5 {[%emt 0:02:06]} 16. Qxd6 {[%emt 0:16:00]} Nc6 {[%emt 0:01:11]} 17. Bxb6 {[%emt 0:06:23]} Qxb6 {[%emt 0:00:06]} 18. Qxd7 {[%emt 0:00:06]} Rfd8 {[%emt 0:06:52]} 19. Qxf5 {[%emt 0:00:42]} Nd4 {[%emt 0:03:19]} 20. Rxd4 {[%emt 0:07:07]} Qxd4 {[%emt 0:00:34]} 21. Kb2 {[%emt 0:00:37]} b5 {[%emt 0:08:36]} 22. Rd1 {[%emt 0:00:52]} Qe3 {[%emt 0:00:41]} 23. Bd3 {[%emt 0:01:48]} b4 {[%emt 0:01:13]} 24. Nd5 {[%emt 0:03:32]} Rxd5 {[%emt 0:00:45]} 25. exd5 {[%emt 0:00:11]} e4+ {[%emt 0:00:04]} 26. Kb1 {[%emt 0:01:28]} Qd4 {[%emt 0:01:07]} 27. Kc1 {[%emt 0:01:43]} e3 {[%emt 0:00:17]} 0-1

[Event "Italian-ch Semifinal 2022"]
[Site "Acqui Terme"]
[Date "2022.06.16"]
[Round "6.9"]
[White "Andreoni, Giuseppe"]
[Black "Gueci, Laura"]
[Result "1-0"]
[ECO "B13"]
[WhiteElo "2170"]
[BlackElo "1917"]
[Annotator "NA RC"]
[PlyCount "39"]
[EventDate "2022.06.15"]
[EventType "swiss"]
[EventCountry "ITA"]
[SourceTitle "playchess.com"]
[Source "ChessBase"]
[SourceQuality "1"]
[TimeControl "40/5400+30:1800+30"]

1. e4 {[%emt 0:00:01]} c6 {[%emt 0:00:08]} 2. d4 {[%emt 0:00:05]} d5 {[%emt 0:00:06]} 3. exd5 {[%emt 0:00:23]} cxd5 {[%emt 0:00:07]} 4. Bd3 {[%emt 0:00:04]} Nc6 {[%emt 0:00:53]} 5. c3 {[%emt 0:00:06]} Nf6 {[%emt 0:00:21]} 6. h3 {[%emt 0:00:55]} e6 {[%emt 0:06:43]} 7. Nf3 {[%emt 0:03:12]} Bd6 {[%emt 0:00:47]} 8. O-O {[%emt 0:01:53]} Qc7 {[%emt 0:01:16]} 9. Re1 {[%emt 0:03:11]} h6 {[%emt 0:03:36]} 10. Qe2 {[%emt 0:21:48]} O-O {[%emt 0:14:34]} 11. Nbd2 {[%emt 0:01:58]} a6 {[%emt 0:01:31]} 12. Nf1 {[%emt 0:11:31]} b5 {[%emt 0:02:46]} 13. Ne5 {[%emt 0:00:36]} b4 {[%emt 0:08:23]} 14. Ng3 {[%emt 0:02:22]} bxc3 {[%emt 0:04:03]} 15. bxc3 {[%emt 0:00:06]} Bb7 {[%emt 0:02:10]} 16. Bf4 {[%emt 0:09:43]} Na5 {[%emt 0:02:41]} 17. Rac1 {[%emt 0:02:09]} Nc4 {[%emt 0:01:43]} 18. Qf3 {[%emt 0:15:09]} Qd8 {[%emt 0:11:51]} 19. Bxc4 {[%emt 0:00:34]} dxc4 {[%emt 0:07:37]} 20. Qxb7 {[%emt 0:00:21]} 1-0

[Event "Italian-ch Semifinal 2022"]
[Site "Acqui Terme"]
[Date "2022.06.16"]
[Round "6.10"]
[White "Pisacane, Pietro"]
[Black "Caprino, Marco"]
[Result "0-1"]
[ECO "A45"]
[WhiteElo "2138"]
[BlackElo "2071"]
[Annotator "NA RC"]
[PlyCount "102"]
[EventDate "2022.06.15"]
[EventType "swiss"]
[EventCountry "ITA"]
[SourceTitle "playchess.com"]
[Source "ChessBase"]
[SourceQuality "1"]
[TimeControl "40/5400+30:1800+30"]

1. d4 {[%emt 0:02:34]} Nf6 {[%emt 0:00:15]} 2. Bf4 {[%emt 0:00:12]} c5 {[%emt 0:00:06]} 3. dxc5 {[%emt 0:00:04]} Qa5+ {[%emt 0:01:52]} 4. Qd2 {[%emt 0:00:14]} Qxc5 {[%emt 0:00:19]} 5. Nc3 {[%emt 0:00:10]} Nc6 {[%emt 0:01:22]} 6. e4 {[%emt 0:07:49]} d6 {[%emt 0:03:44]} 7. O-O-O {[%emt 0:01:04]} Qa5 {[%emt 0:10:01]} 8. Bc4 {[%emt 0:12:45]} e5 {[%emt 0:03:49]} 9. Bg5 {[%emt 0:16:18]} Be6 {[%emt 0:02:13]} 10. Bxe6 {[%emt 0:10:08]} fxe6 {[%emt 0:00:05]} 11. f3 {[%emt 0:09:33]} Rc8 {[%emt 0:03:29]} 12. Kb1 {[%emt 0:05:42]} b5 {[%emt 0:06:45]} 13. Nce2 {[%emt 0:06:51]} Qa4 {[%emt 0:07:56]} 14. Nc1 {[%emt 0:03:22]} Be7 {[%emt 0:02:34]} 15. Nge2 {[%emt 0:01:27]} O-O {[%emt 0:03:41]} 16. Nc3 {[%emt 0:03:09]} Qa5 {[%emt 0:00:35]} 17. Nb3 {[%emt 0:00:50]} Qb6 {[%emt 0:00:27]} 18. Be3 {[%emt 0:00:48]} Qb7 {[%emt 0:00:24]} 19. g4 {[%emt 0:02:56]} a5 {[%emt 0:00:33]} 20. Ne2 {[%emt 0:04:42]} b4 {[%emt 0:02:47]} 21. h4 {[%emt 0:02:22]} a4 {[%emt 0:02:40]} 22. Nbc1 {[%emt 0:02:30]} Na5 {[%emt 0:00:26]} 23. Bg5 {[%emt 0:01:39]} Qc6 {[%emt 0:01:58]} 24. b3 {[%emt 0:00:28]} axb3 {[%emt 0:00:52]} 25. cxb3 {[%emt 0:00:39]} Qb7 {[%emt 0:02:02]} 26. Nd3 {[%emt 0:01:27]} Rb8 {[%emt 0:00:24]} 27. h5 {[%emt 0:01:10]} Nc6 {[%emt 0:01:18]} 28. Be3 {[%emt 0:00:27]} Nd7 {[%emt 0:00:57]} 29. Rh3 {[%emt 0:00:49]} d5 {[%emt 0:00:37]} 30. Nb2 {[%emt 0:01:14]} d4 {[%emt 0:00:25]} 31. Bg5 {[%emt 0:00:06]} Bxg5 {[%emt 0:01:57]} 32. Qxg5 {[%emt 0:00:01]} Na7 {[%emt 0:00:33]} 33. h6 {[%emt 0:00:57]} Rf7 {[%emt 0:00:13]} 34. hxg7 {[%emt 0:00:28]} Nb5 {[%emt 0:00:23]} 35. Nc4 {[%emt 0:00:38]} Rxg7 {[%emt 0:00:18]} 36. Qh6 {[%emt 0:01:00]} Qc6 {[%emt 0:00:06]} 37. Rc1 {[%emt 0:00:43]} Nc3+ {[%emt 0:00:05]} 38. Nxc3 {[%emt 0:00:13]} bxc3 {[%emt 0:00:04]} 39. g5 {[%emt 0:01:31]} Qxc4 {[%emt 0:00:15]} 40. Ka1 {[%emt 0:00:00]} Qc6 {[%emt 0:00:00]} 41. g6 {[%emt 0:00:45]} Nf8 {[%emt 0:05:00]} 42. Rg1 {[%emt 0:03:55]} Rxg6 {[%emt 0:00:32]} 43. Rxg6+ {[%emt 0:02:36]} hxg6 {[%emt 0:00:05]} 44. Qh8+ {[%emt 0:00:28]} Kf7 {[%emt 0:00:04]} 45. Rh7+ {[%emt 0:00:35]} Nxh7 {[%emt 0:00:09]} 46. Qxh7+ {[%emt 0:00:33]} Kf6 {[%emt 0:00:14]} 47. Qh4+ {[%emt 0:00:43]} g5 {[%emt 0:00:20]} 48. Qh6+ {[%emt 0:00:21]} Ke7 {[%emt 0:00:06]} 49. Qxg5+ {[%emt 0:00:55]} Kd6 {[%emt 0:00:05]} 50. f4 {[%emt 0:00:08]} Qb5 {[%emt 0:00:12]} 51. fxe5+ {[%emt 0:00:12]} Qxe5 {[%emt 0:00:28]} 0-1

[Event "Italian-ch Semifinal 2022"]
[Site "Acqui Terme"]
[Date "2022.06.17"]
[Round "7.1"]
[White "Barp, Alberto"]
[Black "Genocchio, Daniele"]
[Result "1-0"]
[ECO "A61"]
[WhiteElo "2384"]
[BlackElo "2365"]
[Annotator "TA"]
[PlyCount "85"]
[EventDate "2022.06.15"]
[EventType "swiss"]
[EventCountry "ITA"]
[SourceTitle "playchess.com"]
[Source "ChessBase"]
[SourceQuality "1"]
[TimeControl "40/5400+30:1800+30"]

{[%evp 13,85,33,30,27,58,41,104,75,82,73,91,88,95,80,93,58,65,66,81,52,55,47,59,36,43,30,39,40,57,17,22,24,12,-60,-56,-191,-201,-209,-225,-558,-538,-2166,-545,-510,-507,-1273,-1129,-1503,-1465,-1318,-426,-501,-488,-447,142,135,474,465,458,414,743,704,741,698,793,739,1182,1193,1178,1172,1174,1026,964,957]} 1. d4 {[%emt 1:31:00]} Nf6 {[%emt 0:02:14]} 2. c4 {[%emt 0:00:00]} e6 {[%emt 0:01:15]} 3. Nf3 {[%emt 0:00:00]} c5 {[%emt 0:00:45]} 4. d5 {[%emt 0:00:00]} exd5 {[%emt 0:00:55]} 5. cxd5 {[%emt 0:00:00]} d6 {[%emt 0:00:05]} 6. Nc3 {[%emt 0:00:00]} g6 {[%emt 0:01:10]} 7. h3 {[%emt 0:00:00]} Bg7 {[%emt 0:01:45]} 8. e4 {[%emt 0:00:00] A61: Modern Benoni: Nf3 without early e4.} Nbd7 {[%emt 0:03:15]} 9. Bd3 {[%emt 0:00:00]} Nh5 {[%emt 0:07:12] Prevents Bf4.} ({Better is} 9... O-O $14) 10. Bg5 {[%emt 0:00:00] [#] White is better.} Qb6 $146 {[%emt 0:10:37]} ({Predecessor:} 10... Bf6 11. Be3 Ne5 12. Be2 Nxf3+ 13. Bxf3 Ng7 14. Qd2 O-O 15. O-O Be5 16. Bf4 Qe7 {1-0 (41) Garriga Cazorla,P (2478)-Fier,A (2558) Chess.com INT 2021}) 11. Qd2 {[%emt 0:00:00]} h6 {[%emt 0:01:01]} 12. Be3 {[%emt 0:00:00]} g5 {[%emt 0:00:04]} 13. g3 {[%emt 0:00:00]} Qd8 {[%emt 0:12:20]} 14. Be2 {[%emt 0:00:00]} Nhf6 {[%emt 0:01:50]} 15. Qc2 {[%emt 0:00:00]} a6 {[%emt 0:02:43]} 16. a4 {[%emt 0:00:00] Inhibits b5. White is more active.} O-O {[%emt 0:05:41]} 17. Nd2 {[%emt 0:00:00]} Re8 {[%emt 0:09:47]} 18. h4 {[%emt 0:00:00]} (18. Kd1 {seems wilder.} Nh7 19. h4 Bd4 20. hxg5 Bxe3 21. fxe3 Qxg5 22. Nc4) 18... g4 {[%emt 0:03:03]} 19. O-O {[%emt 0:00:00]} Ne5 {[%emt 0:02:08]} 20. a5 {[%emt 0:00:00]} Rb8 {[%emt 0:01:42]} 21. Ra2 {[%emt 0:00:00]} Qe7 {[%emt 0:03:59]} 22. Re1 {[%emt 0:00:00]} Nh5 {[%emt 0:08:29]} 23. Na4 {[%emt 0:00:00]} ({White should try} 23. Nc4 $11) 23... f5 $1 $15 {[%emt 0:10:15][%cal Bf7f5,Bf5f4][%mdl 32]} 24. Nb6 {[%emt 0:00:00]} (24. exf5 $15 Qf7 25. f6 Nxf6 26. Nc4 Nxc4 27. Bxc4) 24... f4 $1 $19 {[%emt 0:00:11]} 25. Nxc8 {[%emt 0:00:00]} Rbxc8 {[%emt 0:00:20]} 26. gxf4 {[%emt 0:00:00] [#]} (26. Bxf4 {was the crucial defense.} Nxf4 27. gxf4) 26... Qxh4 $1 {[%emt 0:00:39]} 27. fxe5 {[%emt 0:00:00]} (27. Ra3 Ng6) 27... Bxe5 {[%emt 0:00:18]} (27... Ng3 $142 {( -> ...Qh1#)} 28. fxg3 Qxg3+ 29. Kh1 Qh3+ 30. Kg1 Qxe3+ 31. Kg2 Rf8) 28. Nf1 {[%emt 0:00:00]} Rf8 {[%emt 0:04:20][%cal Of8f3] ...Rf3! is the strong threat.} 29. Qd1 {[%emt 0:05:09]} (29. Bd1 $142 Kh7 30. b4) 29... Rc7 {[%emt 0:02:48]} 30. Bxg4 {[%emt 0:03:10]} Rg7 {[%emt 0:00:03]} 31. f3 {[%emt 0:00:04] [#]} Nf6 {[%emt 0:03:04]} (31... Rxf3 $142 $3 {[%mdl 512]} 32. Qxf3 Rxg4+ 33. Qxg4+ Qxg4+ 34. Kf2 Bf6 35. Bxh6 Bh4+ 36. Ke3 Bxe1) 32. b3 {[%emt 0:01:28]} (32. Bf2 $2 Qh3 33. Ra3 Nxg4 34. fxg4 Rxg4+ 35. Qxg4+ Qxg4+ 36. Bg3 Bd4+ 37. Kh2 Rxf1 $1 {[%mdl 512]} 38. Rxf1 Qe2+ 39. Rf2 Bxf2) 32... Nxg4 {[%emt 0:00:28]} 33. fxg4 {[%emt 0:00:21] And now Rg2 would win.} Qh3 {[%emt 0:01:54]} ({Resist} 33... Rxg4+ 34. Qxg4+ $3 {[%mdl 512]} Qxg4+ 35. Rg2 $18) (33... Bc3 $1 $19 {[%cal Rc3e1]} 34. Rh2 Qxe1 35. Qxe1 Bxe1) 34. Rg2 $16 {[%emt 0:02:06][%cal Ba2g2,Bg2g1,Bg1f1,Bf1f2][%mdl 32] Black must now prevent Nd2.} Rxf1+ {[%emt 0:00:16][%mdl 8192]} (34... h5 $16 {is more resistant.}) 35. Kxf1 $18 {[%emt 0:00:54][%cal Bg1f1,Bf1e2,Be2d3,Bd3c2][%mdl 32]} Qh1+ {[%emt 0:00:01] [#]} 36. Rg1 $1 {[%emt 0:01:22]} Rf7+ {[%emt 0:00:54]} (36... Qh2 $142 37. Re2 Qh3+ 38. Rgg2 (38. Ke1 Bc3+ 39. Bd2 Bd4 $11) 38... h5) 37. Ke2 {[%emt 0:00:34] White is clearly winning.} ({Worse is} 37. Bf2 Qh3+ 38. Rg2 {[#]} Rxf2+ $1 39. Kxf2 Bd4+ 40. Qxd4 cxd4 $17) 37... Qxe4 {[%emt 0:00:08]} 38. Ref1 {[%emt 0:01:14] Strongly threatening Rxf7.} Rxf1 {[%emt 0:01:06]} 39. Rxf1 {[%emt 0:01:29]} Qg2+ {[%emt 0:00:39]} 40. Kd3 {[%emt 0:00:00]} Qxd5+ {[%emt 0:00:00]} 41. Kc2 {[%emt 0:03:47]} Qg2+ {[%emt 0:00:44]} 42. Rf2 {[%emt 0:00:24]} Qe4+ {[%emt 0:00:04]} 43. Qd3 {[%emt 0:00:09] Weighted Error Value: White=0.87/Black=0.85} 1-0

[Event "Italian-ch Semifinal 2022"]
[Site "Acqui Terme"]
[Date "2022.06.17"]
[Round "7.2"]
[White "Hercegovac, Neven"]
[Black "Lettieri, Giuseppe"]
[Result "0-1"]
[ECO "B15"]
[WhiteElo "2155"]
[BlackElo "2445"]
[Annotator "TA"]
[PlyCount "88"]
[EventDate "2022.06.15"]
[EventType "swiss"]
[EventCountry "ITA"]
[SourceTitle "playchess.com"]
[Source "ChessBase"]
[SourceQuality "1"]
[TimeControl "40/5400+30:1800+30"]

{[%evp 9,88,12,8,13,5,9,15,5,23,0,0,0,14,0,-9,-8,-7,-9,0,-13,-5,0,1,-16,-16,-53,-32,-86,-49,-57,-57,-52,-52,-49,-25,-25,-25,-28,-19,-35,-35,-79,-68,-69,-35,-50,-18,-76,-60,-72,-52,-52,-55,-250,-258,-239,-231,-346,-292,-371,-372,-372,-364,-556,-590,-572,-558,-673,-663,-810,-720,-923,-891,-1785,-1646,-6556,-5889,-29978,-29979,-29989,-3319]} 1. e4 {[%emt 0:00:03]} c6 {[%emt 0:00:08]} 2. d4 {[%emt 0:00:06]} d5 {[%emt 0:00:05]} 3. Nc3 {[%emt 0:00:04]} dxe4 {[%emt 0:00:07]} 4. Nxe4 {[%emt 0:00:03]} Nf6 {[%emt 0:00:08]} 5. Ng3 {[%emt 0:00:05]} h5 {[%emt 0:00:19][%cal Oc6c5,Bh7h5,Bh5h4][%mdl 32]} 6. h3 {[%emt 0:00:06] B15: Caro-Kann: 3 Nc3: 3...g6 and 3...dxe4 4 Nxe4 Nf6 5 Nxf6+ exf6.} c5 {[%emt 0:00:11] [#]} 7. Nf3 $146 {[%emt 0:00:06]} ({Predecessor:} 7. c3 cxd4 8. cxd4 Qa5+ 9. Bd2 Qb6 10. Bc3 h4 11. N3e2 g5 12. Nf3 Bh6 13. Qc2 Rg8 {½-½ (21) Glatting,L (1779)-Adermann,M (1443) Willingen 2007}) 7... Nc6 {[%emt 0:00:04][%cal Rc6d4]} 8. Bc4 $1 {[%emt 0:05:48] The position is equal.} ({Reject} 8. dxc5 Qxd1+ 9. Kxd1 h4 $15) 8... a6 {[%emt 0:00:15]} 9. dxc5 {[%emt 0:08:54]} Qxd1+ $1 {[%emt 0:25:32]} 10. Kxd1 {[%emt 0:00:12]} h4 {[%emt 0:00:27]} 11. Ne2 {[%emt 0:01:12]} Ne4 {[%emt 0:23:12]} 12. Be3 {[%emt 0:00:51][%cal Bc1e3,Be3d4,Bd4e5][%mdl 32]} e6 {[%emt 0:00:48]} 13. Ned4 {[%emt 0:15:37]} Nxd4 {[%emt 0:04:15]} 14. Bxd4 {[%emt 0:01:49]} Nxc5 {[%emt 0:03:38]} 15. Re1 {[%emt 0:12:14]} Rh5 {[%emt 0:07:35]} 16. Re5 {[%emt 0:22:04]} Rxe5 {[%emt 0:00:18]} 17. Bxe5 {[%emt 0:00:29]} b5 {[%emt 0:02:35]} 18. Bb3 {[%emt 0:01:38]} (18. Be2 $15) 18... f6 {[%emt 0:02:35]} 19. Bd4 {[%emt 0:01:47]} Nxb3 {[%emt 0:06:01]} 20. axb3 {[%emt 0:00:18]} Bb7 {[%emt 0:00:30] [#] White must now prevent ...0-0-0.} 21. Ke2 {[%emt 0:01:25]} Rc8 {[%emt 0:02:06]} 22. c3 {[%emt 0:02:10]} e5 {[%emt 0:00:23]} 23. Bb6 {[%emt 0:01:23]} g5 {[%emt 0:00:35]} 24. Rd1 {[%emt 0:01:27]} Be7 {[%emt 0:01:24]} 25. Ne1 {[%emt 0:04:58]} Rc6 {[%emt 0:01:48]} 26. Be3 {[%emt 0:00:27]} f5 {[%emt 0:02:31]} 27. f3 {[%emt 0:07:01]} Re6 {[%emt 0:03:25]} 28. Nc2 {[%emt 0:01:30]} (28. b4 $11 {keeps the balance.}) 28... g4 $17 {[%emt 0:05:01]} 29. Bf2 {[%emt 0:03:01]} gxf3+ {[%emt 0:04:28]} 30. gxf3 {[%emt 0:00:07]} f4 {[%emt 0:00:01] Prevents Ne3.} 31. Re1 $2 {[%emt 0:01:29] [#] This move loses the game for White.} (31. Nb4 $15) 31... Bd5 $1 $19 {[%emt 0:01:06]} 32. b4 {[%emt 0:00:54]} Kf7 {[%emt 0:02:37]} 33. Bc5 {[%emt 0:01:45]} (33. Rg1 {was necessary.}) 33... Rg6 {[%emt 0:01:20]} 34. Kf2 {[%emt 0:04:39]} Bf6 {[%emt 0:00:35] aiming for ...Rg3.} 35. Rd1 {[%emt 0:00:35]} Ke6 {[%emt 0:00:22] Hoping for ...Rg3.} 36. Rg1 {[%emt 0:01:30]} (36. Rh1 $142) 36... Rxg1 {[%emt 0:00:20]} 37. Kxg1 {[%emt 0:00:02]} Bxf3 {[%emt 0:00:06][%mdl 4096] Endgame KBB-KBN} 38. Kf2 {[%emt 0:00:20]} Be4 {[%emt 0:00:38]} 39. Ne1 {[%emt 0:00:31]} Kd5 {[%emt 0:00:45]} 40. b3 {[%emt 0:00:00]} Bf5 {[%emt 0:00:00]} 41. Kg2 {[%emt 0:01:53]} e4 {[%emt 0:03:00][%cal Be5e4,Be4e3][%mdl 32]} 42. Nc2 {[%emt 0:00:29]} Bxc3 {[%emt 0:00:30] ( -> ...e3). A strong pair of Bishops.} 43. Be7 {[%emt 0:00:15]} e3 {[%emt 0:00:27]} 44. Na3 {[%emt 0:00:26]} Be1 {[%emt 0:14:57] Weighted Error Value: White=0.85/Black=0.07 (flawless)} (44... Be4+ $142 45. Kg1 e2 46. Bxh4 Bd4+ 47. Kh2 f3 48. Be1 f2 49. Bxf2 Bxf2 50. Nc2 Bxc2 51. h4 e1=Q 52. Kg2 Bxh4 53. Kh2 Qg3+ 54. Kh1 Be4#) 0-1